fUSD/lending_fUSD_20250814
["ID","MTS","AMOUNT","RATE_DAILY","PERIOD"]
[379174632,1755177051161,-400.0,0.00027808,2]
[379174633,1755177051172,-2260.3,0.00027808,2]
[379174634,1755177051182,-400.0,0.00027808,2]
[379174635,1755177051193,-400.0,0.00027808,2]
[379174636,1755177051202,-2201.94,0.00027808,2]
[379174637,1755177051212,-1557.13,0.00027808,2]
[379174638,1755177051222,-435.86,0.00027808,2]
[379174639,1755177051233,-400.0,0.00027808,2]
[379174640,1755177051243,-2726.03,0.00027808,2]
[379174641,1755177051253,-1587.37,0.00027808,2]
[379174642,1755177051264,-3103.3,0.00027808,2]
[379174643,1755177051274,-1497.67,0.00027808,2]
[379174644,1755177051284,-400.0,0.00027808,2]
[379174645,1755177051295,-1742.65,0.00027808,2]
[379174646,1755177051305,-5542.92,0.00027808,2]
[379174647,1755177051315,-2448.07,0.00027808,2]
[379174648,1755177051327,-1189.68,0.00027808,2]
[379174649,1755177051337,-1436.51,0.00027808,2]
[379174650,1755177051348,-824.99,0.00027808,2]
[379174651,1755177051359,-6150.24,0.00027808,2]
[379174652,1755177051371,-1473.14,0.00027808,2]
[379174653,1755177051381,-703.69,0.00027808,2]
[379174654,1755177051392,-400.0,0.00027808,2]
[379174655,1755177051403,-1205.89,0.00027808,2]
[379174656,1755177051414,-2949.8,0.00027808,2]
[379174657,1755177051424,-1139.76,0.00027808,2]
[379174658,1755177051435,-400.0,0.00027808,2]
[379174659,1755177051445,-3124.78,0.00027808,2]
[379174660,1755177051456,-400.0,0.00027808,2]
[379174661,1755177051467,-479.37,0.00027808,2]
[379174662,1755177051477,-400.0,0.00027808,2]
[379174663,1755177051489,-508.96,0.00027808,2]
[379174664,1755177051501,-400.0,0.00027808,2]
[379174665,1755177051512,-2932.58,0.00027808,2]
[379174666,1755177051523,-648.02,0.00027808,2]
[379174667,1755177051533,-1193.83,0.00027808,2]
[379174668,1755177051543,-1841.75,0.00027808,2]
[379174669,1755177051554,-1707.84550627,0.00027808,2]
[379174670,1755177052734,-1351.34449373,0.00027808,2]
[379174671,1755177052745,-614.21,0.00027808,2]
[379174673,1755177052755,-913.95,0.00027808,2]
[379174674,1755177052766,-400.0,0.00027808,2]
[379174675,1755177052776,-400.0,0.00027808,2]
[379174676,1755177052786,-1810.75,0.00027808,2]
[379174677,1755177052797,-601.03175977,0.00027808,2]
[379174678,1755177052866,-793.17824023,0.00027808,2]
[379174679,1755177052876,-610.4,0.00027808,2]
[379174680,1755177052886,-296.97515334,0.00027808,2]
[379174681,1755177052899,-248.52484666,0.00027808,2]
[379174682,1755177052910,-400.0,0.00027808,2]
[379174683,1755177052920,-948.32,0.00027808,2]
[379174684,1755177052931,-838.43,0.00027808,2]
[379174685,1755177052941,-317.73492387,0.00027808,2]
[379174686,1755177052951,-400.0,0.00027808,2]
[379174687,1755177052962,-2262.11,0.00027808,2]
[379174688,1755177052973,-592.59,0.00027808,2]
[379174689,1755177052986,-402.93,0.00027808,2]
[379174690,1755177052997,-1923.8,0.00027808,2]
[379174691,1755177053008,-557.42,0.00027808,2]
[379174692,1755177053018,-159.74873782,0.00027808,2]
[379174693,1755177053031,-1831.94126218,0.00027808,2]
[379174694,1755177053042,-400.0,0.00027808,2]
[379174695,1755177053053,-774.26,0.00027808,2]
[379174696,1755177053064,-923.35,0.00027808,2]
[379174697,1755177053075,-2004.7,0.00027808,2]
[379174698,1755177053086,-400.0,0.00027808,2]
[379174699,1755177053096,-400.0,0.00027808,2]
[379174700,1755177053106,-555.74873782,0.00027808,2]
[379174701,1755177053120,-694.51126218,0.00027808,2]
[379174702,1755177053130,-1460.5,0.00027808,2]
[379174703,1755177053141,-400.0,0.00027808,2]
[379174704,1755177053152,-1110.26,0.00027808,2]
[379174705,1755177053163,-35.08817787,0.00027808,2]
[379174706,1755177054830,-2821.0181989,0.00026942,2]
[379174707,1755177054844,-5944.68569625,0.00026942,2]
[379174708,1755177054855,-3224.02,0.00027397,2]
[379174709,1755177054867,-151.0,0.00027533,2]
[379174710,1755177054878,-153.89430375,0.00027534,2]
[379174711,1755177054890,-2421.64684714,0.00027534,2]
[379174712,1755177054926,-648.47884911,0.00027534,2]
[379174713,1755177054939,-151.0,0.00027661,2]
[379174714,1755177054951,-590.48660097,0.00027671,2]
[379174715,1755177055019,-2633.53339903,0.00027671,2]
[379174716,1755177055030,-151.0,0.00027807,2]
[379174717,1755177055040,-364.91182213,0.00027808,2]
[379174718,1755177055052,-400.0,0.00027808,2]
[379174719,1755177055062,-515.04,0.00027808,2]
[379174720,1755177055074,-400.0,0.00027808,2]
[379174721,1755177055085,-1260.05,0.00027808,2]
[379174722,1755177055095,-260.56969604,0.00027808,2]
[379174723,1755177055108,-405.95030396,0.00027808,2]
[379174724,1755177055118,-400.0,0.00027808,2]
[379174725,1755177055129,-400.0,0.00027808,2]
[379174726,1755177055140,-527.15,0.00027808,2]
[379174727,1755177055150,-1354.72,0.00027808,2]
[379174728,1755177055161,-400.0,0.00027808,2]
[379174729,1755177055171,-400.0,0.00027808,2]
[379174730,1755177055181,-2751.54,0.00027808,2]
[379174731,1755177055191,-400.0,0.00027808,2]
[379174732,1755177055201,-1685.02,0.00027808,2]
[379174733,1755177055212,-1947.63,0.00027808,2]
[379174734,1755177055223,-400.0,0.00027808,2]
[379174735,1755177055236,-400.0,0.00027808,2]
[379174736,1755177055246,-400.0,0.00027808,2]
[379174737,1755177055257,-2756.29,0.00027808,2]
[379174738,1755177055268,-788.39,0.00027808,2]
[379174739,1755177055279,-1016.49,0.00027808,2]
[379174740,1755177055290,-773.87,0.00027808,2]
[379174741,1755177055300,-400.0,0.00027808,2]
[379174742,1755177055311,-400.0,0.00027808,2]
[379174743,1755177055321,-400.0,0.00027808,2]
[379174744,1755177055332,-2695.82,0.00027808,2]
[379174745,1755177055342,-400.0,0.00027808,2]
[379174746,1755177055353,-400.0,0.00027808,2]
[379174747,1755177055363,-420.7,0.00027808,2]
[379174748,1755177055374,-580.6,0.00027808,2]
[379174749,1755177055385,-2414.68,0.00027808,2]
[379174750,1755177055403,-639.79,0.00027808,2]
[379174751,1755177055415,-446.15,0.00027808,2]
[379174752,1755177055427,-400.0,0.00027808,2]
[379174753,1755177055439,-1290.52,0.00027808,2]
[379174754,1755177055451,-702.42,0.00027808,2]
[379174755,1755177055462,-1139.95,0.00027808,2]
[379174756,1755177055473,-847.66,0.00027808,2]
[379174757,1755177055485,-472.79,0.00027808,2]
[379174758,1755177055496,-4027.47,0.00027808,2]
[379174759,1755177055507,-938.67,0.00027808,2]
[379174760,1755177055518,-2661.06,0.00027808,2]
[379174761,1755177055529,-1385.87,0.00027808,2]
[379174762,1755177055539,-961.82,0.00027808,2]
[379174763,1755177055550,-198.97969504,0.00027808,2]
[379174764,1755177055571,-230.7578,0.00023979,2]
[379174765,1755177055582,-201.02030496,0.00027808,2]
[379174766,1755177055592,-490.06603815,0.00027808,2]
[379174767,1755177055605,-1629.57396185,0.00027808,2]
[379174768,1755177055615,-400.0,0.00027808,2]
[379174769,1755177055629,-400.0,0.00027808,2]
[379174770,1755177055641,-400.0,0.00027808,2]
[379174771,1755177055652,-400.0,0.00027808,2]
[379174772,1755177055662,-3224.02,0.00027808,2]
[379174773,1755177055673,-250.0,0.00027808,2]
[379174774,1755177055683,-110.22461517,0.00027841,2]
[379174775,1755177055700,-178.82420517,0.00027841,2]
[379174776,1755177055712,-1000.0,0.000279,2]
[379174777,1755177055722,-2573.84775966,0.000279,10]
[379174778,1755177055736,-3003.88385313,0.000279,10]
[379174779,1755177055771,-422.26838721,0.000279,10]
[379174780,1755177055781,-1452.99577899,0.00027934,2]
[379174781,1755177055794,-10101.15422101,0.00027934,2]
[379174782,1755177055804,-2396.08,0.00027934,2]
[379174783,1755177055815,-4691.67,0.00027934,2]
[379174784,1755177055826,-450.0,0.00027934,2]
[379174785,1755177055836,-6488.98037016,0.00027934,2]
[379174786,1755177055848,-4783.91962984,0.00027934,2]
[379174787,1755177055858,-3412.5,0.00027934,2]
[379174788,1755177055869,-376.26827527,0.00027934,2]
[379174789,1755177055879,-400.0,0.00027934,2]
[379174790,1755177055889,-2480.52,0.00027934,2]
[379174791,1755177055900,-450.68409489,0.00027934,2]
[379174792,1755177056915,-589.65733345,0.00026632,2]
[379174793,1755177056926,-400.0,0.00027397,2]
[379174794,1755177056936,-400.0,0.00027397,2]
[379174795,1755177057068,-2284.11,0.00027397,2]
[379174796,1755177057080,-400.0,0.00027534,2]
[379174797,1755177057090,-402.73266655,0.00027534,2]
[379174798,1755177057102,-1881.37733345,0.00027534,2]
[379174799,1755177057112,-400.0,0.00027671,2]
[379174800,1755177057121,-2284.11,0.00027671,2]
[379174801,1755177057131,-400.0,0.00027808,2]
[379174802,1755177057141,-2284.11,0.00027808,2]
[379174803,1755177057152,-9808.03590511,0.00027934,2]
[379174804,1755177057162,-400.0,0.00027934,2]
[379174805,1755177057172,-4929.31,0.00027934,2]
[379174806,1755177057182,-400.0,0.00027934,2]
[379174807,1755177057192,-4451.57,0.00027934,2]
[379174808,1755177057202,-209.29013652,0.00027934,2]
[379174809,1755177057212,-400.0,0.00027934,2]
[379174810,1755177057222,-7713.21,0.00027934,2]
[379174811,1755177057233,-17425.72,0.00027934,2]
[379174812,1755177057244,-400.0,0.00027934,2]
[379174813,1755177057255,-400.0,0.00027934,2]
[379174814,1755177057266,-407.87892396,0.00027934,2]
[379174815,1755177057276,-400.0,0.00027934,2]
[379174816,1755177057286,-1517.33,0.00027934,2]
[379174817,1755177057297,-5647.65,0.00027934,2]
[379174818,1755177057310,-400.0,0.00027934,2]
[379174819,1755177057321,-315.95197771,0.00027934,2]
[379174820,1755177057332,-4990.33,0.00027934,2]
[379174821,1755177057343,-400.0,0.00027934,2]
[379174822,1755177057353,-3862.07,0.00027934,2]
[379174823,1755177057364,-400.0,0.00027934,2]
[379174824,1755177057375,-400.0,0.00027934,2]
[379174825,1755177057387,-15508.8,0.00027934,2]
[379174826,1755177057397,-15480.47,0.00027934,2]
[379174827,1755177057408,-901.17,0.00027934,2]
[379174828,1755177057419,-7028.21,0.00027934,2]
[379174829,1755177057429,-400.0,0.00027934,2]
[379174830,1755177057442,-151.0,0.00027934,2]
[379174831,1755177057453,-151.0,0.00027935,7]
[379174832,1755177057464,-6563.35,0.00027943,2]
[379174833,1755177057475,-400.0,0.00027944,2]
[379174834,1755177057486,-400.0,0.00027944,2]
[379174835,1755177057497,-400.0,0.00027944,2]
[379174836,1755177057507,-400.0,0.00027944,2]
[379174837,1755177057519,-400.0,0.00027944,2]
[379174838,1755177057529,-400.0,0.00027944,2]
[379174839,1755177057540,-400.0,0.00027944,2]
[379174840,1755177057551,-400.0,0.00027944,2]
[379174841,1755177057563,-400.0,0.00027944,2]
[379174842,1755177057573,-400.0,0.00027944,2]
[379174843,1755177057584,-231.58602825,0.00027944,2]
[379174844,1755177057594,-358.92513415,0.00027944,2]
[379174845,1755177057605,-400.0,0.00027944,2]
[379174846,1755177057616,-400.0,0.00027944,2]
[379174847,1755177057626,-400.0,0.00027944,2]
[379174848,1755177057640,-400.0,0.00027944,2]
[379174849,1755177057650,-400.0,0.00027944,2]
[379174850,1755177057660,-400.0,0.00027944,2]
[379174851,1755177057670,-400.0,0.00027944,2]
[379174852,1755177057680,-400.0,0.00027944,2]
[379174853,1755177057691,-326.29601401,0.00027944,2]
[379174854,1755177057701,-505.13491224,0.00027944,2]
[379174855,1755177057711,-400.0,0.00027944,2]
[379174856,1755177057722,-400.0,0.00027944,2]
[379174857,1755177057733,-400.0,0.00027944,2]
[379174858,1755177057743,-464.81117154,0.00027944,2]
[379174859,1755177057753,-400.0,0.00027944,2]
[379174860,1755177057763,-400.0,0.00027944,2]
[379174861,1755177057774,-400.0,0.00027944,2]
[379174862,1755177057784,-400.0,0.00027944,2]
[379174863,1755177057794,-400.0,0.00027944,2]
[379174864,1755177057805,-8955.3,0.00027944,2]
[379174865,1755177057815,-2465.45,0.00027944,2]
[379174866,1755177057825,-5215.24,0.00027944,2]
[379174867,1755177057835,-5361.72,0.00027944,2]
[379174868,1755177057845,-456.95964325,0.00027944,2]
[379174869,1755177057855,-5922.0,0.00027944,2]
[379174870,1755177057864,-400.0,0.00027944,2]
[379174871,1755177057875,-400.0,0.00027944,2]
[379174872,1755177057885,-5356.73,0.00027944,2]
[379174873,1755177057895,-22803.12,0.00027944,2]
[379174874,1755177057905,-400.0,0.00027944,2]
[379174875,1755177057915,-5895.03,0.00027944,2]
[379174876,1755177057925,-1169.4,0.00027944,2]
[379174877,1755177057935,-400.0,0.00027944,2]
[379174878,1755177057946,-8212.61,0.00027944,2]
[379174879,1755177057956,-400.0,0.00027944,2]
[379174880,1755177057966,-7702.87,0.00027944,2]
[379174881,1755177057975,-3701.91,0.00027944,2]
[379174882,1755177057988,-6237.93,0.00027944,2]
[379174883,1755177057998,-400.0,0.00027944,2]
[379174884,1755177058008,-400.0,0.00027944,2]
[379174885,1755177058018,-400.0,0.00027944,2]
[379174886,1755177058028,-400.0,0.00027944,2]
[379174887,1755177058038,-5969.0,0.00027944,2]
[379174888,1755177058048,-400.0,0.00027944,2]
[379174889,1755177058057,-4234.32,0.00027944,2]
[379174890,1755177058067,-400.0,0.00027944,2]
[379174891,1755177058078,-383.07904225,0.00027944,2]
[379174892,1755177058088,-19394.18,0.00027944,2]
[379174893,1755177058099,-364.97264359,0.00027944,2]
[379174894,1755177058109,-400.0,0.00027944,2]
[379174895,1755177058119,-4648.08,0.00027944,2]
[379174896,1755177058132,-5621.37,0.00027944,2]
[379174897,1755177058142,-3885.13,0.00027944,2]
[379174898,1755177058153,-8128.13,0.00027944,2]
[379174899,1755177058163,-5691.28,0.00027944,2]
[379174900,1755177058173,-3934.46,0.00027944,2]
[379174901,1755177058182,-363.11844402,0.00027944,2]
[379174902,1755177058192,-5036.74,0.00027944,2]
[379174903,1755177058202,-2688.05,0.00027944,2]
[379174904,1755177058211,-8686.93,0.00027944,2]
[379174905,1755177058221,-7564.82,0.00027944,2]
[379174906,1755177058231,-400.0,0.00027944,2]
[379174907,1755177058242,-8725.87,0.00027944,2]
[379174908,1755177058252,-436.94,0.00027944,2]
[379174909,1755177058261,-2154.2,0.00027944,2]
[379174910,1755177058271,-9378.72,0.00027944,2]
[379174911,1755177058281,-479.85,0.00027945,2]
[379174912,1755177058289,-1751.97,0.00027945,2]
[379174913,1755177058301,-4879.8,0.00027945,2]
[379174914,1755177058311,-785.51,0.00027945,2]
[379174915,1755177058320,-920.21,0.00027945,2]
[379174916,1755177058331,-400.0,0.00027945,2]
[379174917,1755177058341,-3738.5,0.00027945,2]
[379174918,1755177058351,-1079.57,0.00027945,2]
[379174919,1755177058360,-400.0,0.00027945,2]
[379174920,1755177058371,-2206.25,0.00027945,2]
[379174921,1755177058381,-2766.16,0.00027945,2]
[379174922,1755177058392,-843.62,0.00027945,2]
[379174923,1755177058402,-400.0,0.00027945,2]
[379174924,1755177058412,-1829.43,0.00027945,2]
[379174925,1755177058422,-815.04,0.00027945,2]
[379174926,1755177058433,-800.4,0.00027945,2]
[379174927,1755177058443,-400.0,0.00027945,2]
[379174928,1755177058453,-2057.09,0.00027945,2]
[379174929,1755177058462,-400.0,0.00027945,2]
[379174930,1755177058472,-102.24268995,0.00027945,2]
[379174931,1755177058494,-954.18971479,0.00027945,2]
[379174932,1755177058506,-547.15446589,0.00027945,2]
[379174933,1755177058518,-656.71312937,0.00027945,2]
[379174934,1755177058528,-400.0,0.00027945,2]
[379174935,1755177058538,-171.48687043,0.00027945,2]
[379174936,1755177058574,-632.43040427,0.00026748,2]
[379174937,1755177058585,-228.51312957,0.00027945,2]
[379174938,1755177058595,-2201.94,0.00027945,2]
[379174939,1755177058605,-1557.13,0.00027945,2]
[379174940,1755177058615,-435.86,0.00027945,2]
[379174941,1755177058629,-400.0,0.00027945,2]
[379174942,1755177058639,-2726.03,0.00027945,2]
[379174943,1755177058649,-1587.37,0.00027945,2]
[379174944,1755177058659,-3103.3,0.00027945,2]
[379174945,1755177058670,-1497.67,0.00027945,2]
[379174946,1755177058680,-415.47122531,0.00027945,2]
[379174947,1755177058689,-1742.65,0.00027945,2]
[379174948,1755177058699,-5542.92,0.00027945,2]
[379174949,1755177058711,-1189.68,0.00027945,2]
[379174950,1755177058722,-2448.07,0.00027945,2]
[379174951,1755177058732,-1436.51,0.00027945,2]
[379174952,1755177058742,-824.99,0.00027945,2]
[379174953,1755177058751,-6150.24,0.00027945,2]
[379174954,1755177058761,-1473.14,0.00027945,2]
[379174955,1755177058771,-703.69,0.00027945,2]
[379174956,1755177058781,-400.0,0.00027945,2]
[379174957,1755177058790,-1205.89,0.00027945,2]
[379174958,1755177058801,-2949.8,0.00027945,2]
[379174959,1755177058811,-1139.76,0.00027945,2]
[379174960,1755177058820,-400.0,0.00027945,2]
[379174961,1755177058830,-3124.78,0.00027945,2]
[379174962,1755177058840,-439.25,0.00027945,2]
[379174963,1755177058849,-479.37,0.00027945,2]
[379174964,1755177058859,-400.0,0.00027945,2]
[379174965,1755177058868,-508.96,0.00027945,2]
[379174966,1755177058878,-400.0,0.00027945,2]
[379174967,1755177058888,-2932.58,0.00027945,2]
[379174968,1755177058897,-648.02,0.00027945,2]
[379174969,1755177058907,-1193.83,0.00027945,2]
[379174970,1755177058916,-193.20203311,0.00027945,2]
[379174971,1755177058928,-474.78,0.00027945,2]
[379174972,1755177059121,-1173.76796689,0.00027945,2]
[379174973,1755177059132,-3059.19,0.00027945,2]
[379174974,1755177059141,-614.21,0.00027945,2]
[379174975,1755177059150,-913.95,0.00027945,2]
[379174976,1755177059160,-400.0,0.00027945,2]
[379174977,1755177059169,-400.0,0.00027945,2]
[379174978,1755177059179,-1810.75,0.00027945,2]
[379174979,1755177059188,-1394.21,0.00027945,2]
[379174980,1755177059198,-610.4,0.00027945,2]
[379174981,1755177059207,-545.5,0.00027945,2]
[379174982,1755177059217,-400.0,0.00027945,2]
[379174983,1755177059227,-948.32,0.00027945,2]
[379174984,1755177059237,-838.43,0.00027945,2]
[379174985,1755177059247,-400.0,0.00027945,2]
[379174986,1755177059257,-92.93568214,0.00027945,2]
[379174987,1755177059270,-2169.17431786,0.00027945,2]
[379174988,1755177059280,-592.59,0.00027945,2]
[379174989,1755177059289,-402.93,0.00027945,2]
[379174990,1755177059298,-1923.8,0.00027945,2]
[379174991,1755177059310,-557.42,0.00027945,2]
[379174992,1755177059320,-1991.69,0.00027945,2]
[379174993,1755177059330,-400.0,0.00027945,2]
[379174994,1755177059340,-774.26,0.00027945,2]
[379174995,1755177059350,-923.35,0.00027945,2]
[379174996,1755177059360,-2004.7,0.00027945,2]
[379174997,1755177059371,-158.87276784,0.00027945,2]
[379174998,1755177059383,-241.12723216,0.00027945,2]
[379174999,1755177059392,-400.0,0.00027945,2]
[379175000,1755177059403,-1250.26,0.00027945,2]
[379175001,1755177059413,-1460.5,0.00027945,2]
[379175002,1755177059423,-400.0,0.00027945,2]
[379175003,1755177059432,-1110.26,0.00027945,2]
[379175004,1755177059443,-290.52138842,0.00027945,2]
[379175005,1755177059455,-109.47861158,0.00027945,2]
[379175006,1755177059465,-400.0,0.00027945,2]
[379175007,1755177059476,-515.04,0.00027945,2]
[379175008,1755177059487,-400.0,0.00027945,2]
[379175009,1755177059497,-1260.05,0.00027945,2]
[379175010,1755177059507,-666.52,0.00027945,2]
[379175011,1755177059516,-400.0,0.00027945,2]
[379175012,1755177059526,-400.0,0.00027945,2]
[379175013,1755177059536,-527.15,0.00027945,2]
[379175014,1755177059545,-1354.72,0.00027945,2]
[379175015,1755177059555,-400.0,0.00027945,2]
[379175016,1755177059565,-400.0,0.00027945,2]
[379175017,1755177059575,-2751.54,0.00027945,2]
[379175018,1755177059585,-400.0,0.00027945,2]
[379175019,1755177059595,-1685.02,0.00027945,2]
[379175020,1755177059611,-1835.88138842,0.00027945,2]
[379175021,1755177059639,-111.74861158,0.00027945,2]
[379175022,1755177059653,-405.0880449,0.00027945,2]
[379175023,1755177059663,-400.0,0.00027945,2]
[379175024,1755177059673,-408.10742191,0.00027945,2]
[379175025,1755177059685,-2756.29,0.00027945,2]
[379175026,1755177059696,-788.39,0.00027945,2]
[379175027,1755177059706,-151.0,0.00027945,7]
[379175028,1755177059717,-1016.49,0.00027945,2]
[379175029,1755177059728,-151.0,0.00027945,7]
[379175030,1755177059740,-773.87,0.00027945,2]
[379175031,1755177059750,-400.0,0.00027945,2]
[379175032,1755177059760,-400.0,0.00027945,2]
[379175033,1755177059772,-466.61283602,0.00027945,2]
[379175034,1755177059781,-2695.82,0.00027945,2]
[379175035,1755177059791,-400.0,0.00027945,2]
[379175036,1755177059801,-400.0,0.00027945,2]
[379175037,1755177059811,-420.7,0.00027945,2]
[379175038,1755177059822,-580.6,0.00027945,2]
[379175039,1755177059832,-2414.68,0.00027945,2]
[379175040,1755177059842,-639.79,0.00027945,2]
[379175041,1755177059852,-446.15,0.00027945,2]
[379175042,1755177059862,-400.0,0.00027945,2]
[379175043,1755177059872,-1290.52,0.00027945,2]
[379175044,1755177059882,-702.42,0.00027945,2]
[379175045,1755177059892,-1139.95,0.00027945,2]
[379175046,1755177059901,-847.66,0.00027945,2]
[379175047,1755177059912,-472.79,0.00027945,2]
[379175048,1755177059921,-4027.47,0.00027945,2]
[379175049,1755177059932,-938.67,0.00027945,2]
[379175050,1755177059942,-2661.06,0.00027945,2]
[379175051,1755177059952,-1385.87,0.00027945,2]
[379175052,1755177059963,-151.0,0.00027945,7]
[379175053,1755177059973,-961.82,0.00027945,2]
[379175054,1755177059985,-400.0,0.00027945,2]
[379175055,1755177059995,-2119.64,0.00027945,2]
[379175056,1755177060005,-400.0,0.00027945,2]
[379175057,1755177060016,-344.13010395,0.00027945,2]
[379175058,1755177060026,-400.0,0.00027945,2]
[379175059,1755177060036,-400.0,0.00027945,2]
[379175060,1755177060047,-3224.02,0.00027945,2]
[379175061,1755177060057,-151.0,0.00027945,2]
[379175062,1755177060067,-400.0,0.00027945,2]
[379175063,1755177060078,-2284.11,0.00027945,2]
[379175064,1755177060088,-500.0,0.00027956,5]
[379175065,1755177060099,-331.6454886,0.00027967,2]
[379175066,1755177060110,-1606.98371933,0.00027981,2]
[379175067,1755177060120,-228.74990854,0.00027988,2]
[379175068,1755177060130,-500.0,0.0002799,5]
[379175069,1755177060140,-521.50330783,0.0002799,5]
[379175070,1755177060150,-1074.33,0.00028012,2]
[379175071,1755177060161,-624.37,0.00028028,2]
[379175072,1755177060171,-624.37,0.00028042,2]
[379175073,1755177060180,-6031.0,0.0002805,5]
[379175074,1755177060190,-170.45362743,0.00028052,5]
[379175075,1755177060200,-624.37,0.00028057,2]
[379175076,1755177060210,-7981.75692841,0.00028071,2]
[379175077,1755177140112,250.0,0.00015,2]
[379175078,1755177142041,300.0,0.00017,2]
[379175087,1755177618728,190.95,0.00013699,2]
[379175089,1755177687637,-53.0,0.000195,2]
[379175090,1755177687665,-397.0,0.000195,2]
[379175093,1755177738199,175.17,0.00016712,2]
[379175096,1755177771541,3235.774331,0.00019,3]
[379175097,1755177936148,-397.0,0.00019,2]
[379175103,1755177986462,150.0,0.0001748,2]
[379175104,1755177986718,251.43448285,0.00017559,2]
[379175105,1755177987396,294.8922947,0.00017639,2]
[379175106,1755177987712,338.35010656,0.00017718,2]
[379175107,1755177987885,686.01260137,0.00018354,2]
[379175108,1755177988097,425.26573026,0.00017877,2]
[379175109,1755177988337,460.89478426,0.00017957,2]
[379175110,1755177988367,7.82875785,0.00017957,2]
[379175111,1755177989552,381.80791841,0.00017798,2]
[379175116,1755178024662,-150.0,0.00018036,2]
[379175117,1755178025872,-175.66068137,0.00018036,2]
[379175118,1755178029508,-186.52067259,0.00018036,2]
[379175119,1755178029533,-226.10769772,0.00018116,2]
[379175120,1755178032398,-67.46853191,0.00018116,2]
[379175121,1755178032955,-262.06293618,0.00018116,2]
[379175122,1755178032983,-51.73283217,0.00018195,2]
[379175123,1755178038114,-167.86299702,0.00018195,2]
[379175124,1755178039654,-222.86869469,0.00018195,2]
[379175127,1755178044738,-156.63245378,0.00018195,2]
[379175128,1755178044763,-4.61691663,0.00018275,2]
[379175129,1755178045873,-410.96353936,0.00018275,2]
[379175130,1755178047968,-164.12914671,0.00018275,2]
[379175131,1755178049502,-62.84518681,0.00018275,2]
[379175132,1755178058412,400.0,0.00018,2]
[379175133,1755178058433,12333.0530304,0.00018,2]
[379175134,1755178058455,15000.0,0.00018,2]
[379175135,1755178058477,7478.35395565,0.00018,2]
[379175137,1755178074454,-229.47174966,0.00018372,2]
[379175138,1755178078366,-280.65083585,0.00018372,2]
[379175139,1755178080006,-216.54493054,0.00018372,2]
[379175140,1755178084422,-169.47248395,0.00018372,2]
[379175142,1755178085052,28.27412214,0.00018156,2]
[379175145,1755178089243,-221.72587786,0.00018156,2]
[379175146,1755178089266,-186.44845412,0.00018156,2]
[379175147,1755178090872,-38.15845412,0.00018156,2]
[379175148,1755178094209,-75.39309176,0.00018156,2]
[379175149,1755178094233,-186.87166412,0.00018307,2]
[379175150,1755178096309,-113.12833588,0.00018307,2]
[379175151,1755178105222,-218.32088249,0.0001828,2]
[379175152,1755178107975,-208.33180686,0.0001828,2]
[379175153,1755178109485,-220.6560513,0.0001828,2]
[379175154,1755178114740,-185.87316616,0.0001828,2]
[379175155,1755178117956,-761.67130319,0.0001828,2]
[379175156,1755178117981,-729.47041322,0.00018434,2]
[379175157,1755178118003,-772.92822507,0.00018513,2]
[379175158,1755178118026,-816.38603692,0.00018593,2]
[379175159,1755178118049,-859.84384877,0.00018672,2]
[379175160,1755178118071,-903.30166062,0.00018752,2]